[Event "Live Chess"]
[Site "Chess.com"]
[Date "2023.05.21"]
[Round "-"]
[White "ShanthamGrarks"]
[Black "manthanit"]
[Result "1-0"]
[WhiteElo "2009"]
[BlackElo "1047"]
[TimeControl "300"]
[EndTime "17:47:41 PDT"]
[Termination "ShanthamGrarks won by checkmate"]

1. d4 {[%clk 0:04:57.7]} 1... e6 {[%clk 0:04:59.4]} 2. Nc3 {[%clk 0:04:55.9]}
2... d5 {[%clk 0:04:59]} 3. e4 {[%clk 0:04:55.3]} 3... c5 {[%clk 0:04:58.5]} 4.
dxc5 {[%clk 0:04:53.3]} 4... Bxc5 {[%clk 0:04:56]} 5. exd5 {[%clk 0:04:52.6]}
5... exd5 {[%clk 0:04:54]} 6. Qxd5 {[%clk 0:04:50]} 6... Nc6 {[%clk 0:04:47.1]}
7. Bb5 {[%clk 0:04:46]} 7... Ne7 {[%clk 0:04:45.4]} 8. Qxd8+ {[%clk 0:04:42.7]}
8... Kxd8 {[%clk 0:04:42.4]} 9. Bf4 {[%clk 0:04:38.6]} 9... Re8 {[%clk
0:04:41.7]} 10. O-O-O+ {[%clk 0:04:36.7]} 10... Bd7 {[%clk 0:04:40]} 11. Nf3
{[%clk 0:04:30.2]} 11... a6 {[%clk 0:04:39.2]} 12. Bxc6 {[%clk 0:04:28.1]} 12...
bxc6 {[%clk 0:04:38.6]} 13. Ne5 {[%clk 0:04:27.4]} 13... Ra7 {[%clk 0:04:35.7]}
14. Nxf7+ {[%clk 0:04:19]} 14... Kc8 {[%clk 0:04:33.8]} 15. Bd6 {[%clk
0:04:18.1]} 15... Bxf2 {[%clk 0:04:22.6]} 16. Rhf1 {[%clk 0:04:09.3]} 16... Be3+
{[%clk 0:04:20.9]} 17. Kb1 {[%clk 0:04:08.2]} 17... Nd5 {[%clk 0:03:41.6]} 18.
Nxd5 {[%clk 0:04:01.8]} 18... cxd5 {[%clk 0:03:39.8]} 19. Rxd5 {[%clk
0:03:56.4]} 19... Be6 {[%clk 0:03:38.2]} 20. Rd3 {[%clk 0:03:37.6]} 20... Bxf7
{[%clk 0:03:27.7]} 21. Rc3+ {[%clk 0:03:28]} 21... Kd8 {[%clk 0:03:04.3]} 22.
Rxe3 {[%clk 0:03:15.9]} 22... Rxe3 {[%clk 0:03:00.8]} 23. Bc5 {[%clk 0:03:15.3]}
23... Re1+ {[%clk 0:02:42.6]} 24. Rxe1 {[%clk 0:03:12]} 24... Rd7 {[%clk
0:02:40.1]} 25. Kc1 {[%clk 0:03:06.2]} 25... Bh5 {[%clk 0:02:32.2]} 26. h3
{[%clk 0:02:58.1]} 26... Bg6 {[%clk 0:02:26.3]} 27. Rd1 {[%clk 0:02:53.4]} 27...
Kc8 {[%clk 0:02:14.5]} 28. Rxd7 {[%clk 0:02:50.5]} 28... Kxd7 {[%clk 0:02:13.7]}
29. g3 {[%clk 0:02:46]} 29... Bf7 {[%clk 0:02:11.6]} 30. Bb4 {[%clk 0:02:38.4]}
30... Kc6 {[%clk 0:02:09.9]} 31. a3 {[%clk 0:02:33.8]} 31... Kb5 {[%clk
0:02:08.5]} 32. Kd2 {[%clk 0:02:32.2]} 32... g6 {[%clk 0:02:07.9]} 33. Ke3
{[%clk 0:02:29.7]} 33... Be6 {[%clk 0:02:07.3]} 34. h4 {[%clk 0:02:26.9]} 34...
a5 {[%clk 0:02:06.7]} 35. Bc3 {[%clk 0:02:22.6]} 35... Kc4 {[%clk 0:02:05.2]}
36. Kd2 {[%clk 0:02:18.4]} 36... Kd5 {[%clk 0:02:02.4]} 37. Bxa5 {[%clk
0:02:17.1]} 37... Ke4 {[%clk 0:02:00.1]} 38. Bc7 {[%clk 0:02:14.8]} 38... Kf5
{[%clk 0:01:50.4]} 39. Bf4 {[%clk 0:02:10.6]} 39... Ke4 {[%clk 0:01:44]} 40. Kc3
{[%clk 0:02:05.6]} 40... Kd5 {[%clk 0:01:42.7]} 41. Kb4 {[%clk 0:02:04.5]} 41...
Kc6 {[%clk 0:01:42.1]} 42. b3 {[%clk 0:02:03.4]} 42... Kb6 {[%clk 0:01:41.4]}
43. c4 {[%clk 0:02:02.7]} 43... Bd7 {[%clk 0:01:38.7]} 44. a4 {[%clk 0:02:01.6]}
44... Bf5 {[%clk 0:01:37.6]} 45. c5+ {[%clk 0:01:58.9]} 45... Kb7 {[%clk
0:01:32.6]} 46. Bd6 {[%clk 0:01:55.8]} 46... Bd3 {[%clk 0:01:28.4]} 47. Kc3
{[%clk 0:01:53.7]} 47... Be2 {[%clk 0:01:27.1]} 48. b4 {[%clk 0:01:51.7]} 48...
Bd1 {[%clk 0:01:24.2]} 49. a5 {[%clk 0:01:50.1]} 49... Be2 {[%clk 0:01:23.8]}
50. Kd4 {[%clk 0:01:49.1]} 50... Bd1 {[%clk 0:01:18]} 51. Ke5 {[%clk 0:01:48.4]}
51... Bc2 {[%clk 0:01:16.6]} 52. g4 {[%clk 0:01:45.5]} 52... h5 {[%clk
0:01:13.4]} 53. gxh5 {[%clk 0:01:44.1]} 53... gxh5 {[%clk 0:01:12.7]} 54. b5
{[%clk 0:01:42.7]} 54... Bd3 {[%clk 0:01:10.5]} 55. c6+ {[%clk 0:01:41.7]} 55...
Kc8 {[%clk 0:01:08]} 56. b6 {[%clk 0:01:40.8]} 56... Bb5 {[%clk 0:01:06.9]} 57.
Kd5 {[%clk 0:01:39.3]} 57... Ba4 {[%clk 0:01:01.9]} 58. Kc5 {[%clk 0:01:38.6]}
58... Bb3 {[%clk 0:01:01.4]} 59. b7+ {[%clk 0:01:37.6]} 59... Kd8 {[%clk
0:00:59.4]} 60. b8=Q# {[%clk 0:01:36.9]} 1-0

[Event "Live Chess"]
[Site "Chess.com"]
[Date "2023.05.21"]
[Round "-"]
[White "KeithArkell"]
[Black "Conradical12"]
[Result "1-0"]
[WhiteElo "2605"]
[BlackElo "1634"]
[TimeControl "300"]
[EndTime "17:47:47 PDT"]
[Termination "KeithArkell won by resignation"]

1. d4 {[%clk 0:04:57.8]} 1... d5 {[%clk 0:04:57.5]} 2. Nf3 {[%clk 0:04:56.6]}
2... Nf6 {[%clk 0:04:55.5]} 3. c4 {[%clk 0:04:55.8]} 3... c6 {[%clk 0:04:53.8]}
4. Nc3 {[%clk 0:04:54.3]} 4... Bf5 {[%clk 0:04:52.5]} 5. Bg5 {[%clk 0:04:50.8]}
5... Nbd7 {[%clk 0:04:49.5]} 6. e3 {[%clk 0:04:46.9]} 6... e6 {[%clk 0:04:48.3]}
7. Bd3 {[%clk 0:04:43.8]} 7... Bg6 {[%clk 0:04:46.5]} 8. O-O {[%clk 0:04:42.1]}
8... Bd6 {[%clk 0:04:45.4]} 9. Rb1 {[%clk 0:04:37.2]} 9... O-O {[%clk
0:04:37.8]} 10. c5 {[%clk 0:04:34.7]} 10... Bc7 {[%clk 0:04:36.3]} 11. b4 {[%clk
0:04:33.8]} 11... a6 {[%clk 0:04:34.5]} 12. a4 {[%clk 0:04:32.1]} 12... Re8
{[%clk 0:04:28.5]} 13. Bxg6 {[%clk 0:04:30]} 13... fxg6 {[%clk 0:04:26.4]} 14.
e4 {[%clk 0:04:28.4]} 14... dxe4 {[%clk 0:04:23.5]} 15. Nxe4 {[%clk 0:04:26.8]}
15... Qb8 {[%clk 0:04:18.5]} 16. Re1 {[%clk 0:04:21.6]} 16... Bf4 {[%clk
0:04:10.6]} 17. Bxf4 {[%clk 0:03:42.2]} 17... Qxf4 {[%clk 0:04:07.8]} 18. Nd6
{[%clk 0:03:37.1]} 18... Reb8 {[%clk 0:03:52.7]} 19. Rxe6 {[%clk 0:03:34]} 19...
Nd5 {[%clk 0:03:50.3]} 20. Qd2 {[%clk 0:03:25.2]} 20... Qf8 {[%clk 0:03:43.9]}
21. Rbe1 {[%clk 0:03:21.8]} 21... N7f6 {[%clk 0:03:41.2]} 22. h3 {[%clk
0:03:11.5]} 22... a5 {[%clk 0:03:38.1]} 23. b5 {[%clk 0:03:10.1]} 23... Qd8
{[%clk 0:03:16.1]} 24. b6 {[%clk 0:03:05.1]} 24... Qd7 {[%clk 0:03:10.5]} 25.
Nc4 {[%clk 0:02:50.8]} 25... Rd8 {[%clk 0:02:55.7]} 26. Rd6 {[%clk 0:02:42.2]}
26... Qf7 {[%clk 0:02:53.1]} 27. Ng5 {[%clk 0:02:40.3]} 27... Qf8 {[%clk
0:02:45.8]} 28. Ne6 {[%clk 0:02:37.8]} 1-0

[Event "Live Chess"]
[Site "Chess.com"]
[Date "2023.05.21"]
[Round "-"]
[White "Hussamalhaidar"]
[Black "GEMdzq"]
[Result "0-1"]
[WhiteElo "1093"]
[BlackElo "2290"]
[TimeControl "300"]
[EndTime "17:47:49 PDT"]
[Termination "GEMdzq won on time"]

1. b3 {[%clk 0:04:57.8]} 1... e5 {[%clk 0:04:58.1]} 2. Bb2 {[%clk 0:04:56.4]}
2... Nc6 {[%clk 0:04:57.8]} 3. e3 {[%clk 0:04:54.9]} 3... d5 {[%clk 0:04:49.8]}
4. Bb5 {[%clk 0:04:53.4]} 4... Bd6 {[%clk 0:04:48.9]} 5. Nf3 {[%clk 0:04:38.4]}
5... Qe7 {[%clk 0:04:46]} 6. Bxc6+ {[%clk 0:04:35.3]} 6... bxc6 {[%clk
0:04:44.5]} 7. O-O {[%clk 0:04:30.8]} 7... Nf6 {[%clk 0:04:42]} 8. d3 {[%clk
0:04:25.1]} 8... O-O {[%clk 0:04:39.7]} 9. Nbd2 {[%clk 0:04:22.7]} 9... a5
{[%clk 0:04:37]} 10. Kh1 {[%clk 0:04:16.9]} 10... a4 {[%clk 0:04:35.5]} 11. c4
{[%clk 0:03:57.8]} 11... a3 {[%clk 0:04:27.6]} 12. Bc3 {[%clk 0:03:50.7]} 12...
Bf5 {[%clk 0:04:21.4]} 13. d4 {[%clk 0:03:27.4]} 13... e4 {[%clk 0:04:13.4]} 14.
Ne5 {[%clk 0:03:22]} 14... Nd7 {[%clk 0:03:59.2]} 15. Nxc6 {[%clk 0:03:17.4]}
15... Qh4 {[%clk 0:03:57.4]} 16. f4 {[%clk 0:02:55.3]} 16... exf3 {[%clk
0:03:55.5]} 17. Nxf3 {[%clk 0:02:53.6]} 17... Qh6 {[%clk 0:03:53.9]} 18. Nce5
{[%clk 0:02:48.1]} 18... f6 {[%clk 0:03:45.1]} 19. Nxd7 {[%clk 0:02:36]} 19...
Bxd7 {[%clk 0:03:45]} 20. Qe2 {[%clk 0:02:33.4]} 20... Bg4 {[%clk 0:03:43.9]}
21. Qf2 {[%clk 0:02:00.7]} 21... Rae8 {[%clk 0:03:38.6]} 22. g3 {[%clk
0:01:40.5]} 22... Qxe3 {[%clk 0:03:29.3]} 23. Qxe3 {[%clk 0:01:26.9]} 23... Rxe3
{[%clk 0:03:29.2]} 24. Kg2 {[%clk 0:00:25.6]} 24... Rxc3 {[%clk 0:03:26.8]} 25.
h3 {[%clk 0:00:22.1]} 25... Bxf3+ {[%clk 0:03:19.2]} 26. Rxf3 {[%clk 0:00:19.9]}
26... Rxf3 {[%clk 0:03:18]} 27. Kxf3 {[%clk 0:00:18.7]} 27... dxc4 {[%clk
0:03:17.3]} 28. bxc4 {[%clk 0:00:16.7]} 28... c5 {[%clk 0:03:16]} 29. d5 {[%clk
0:00:15]} 29... Rb8 {[%clk 0:03:14.6]} 30. Ke3 {[%clk 0:00:11.4]} 30... Be5
{[%clk 0:03:10]} 31. Kd3 {[%clk 0:00:09.9]} 31... Bxa1 {[%clk 0:03:08.1]} 0-1

[Event "Live Chess"]
[Site "Chess.com"]
[Date "2023.05.21"]
[Round "-"]
[White "Singapourfeuj"]
[Black "LanceMaster23"]
[Result "0-1"]
[WhiteElo "2167"]
[BlackElo "1913"]
[TimeControl "300"]
[EndTime "17:47:56 PDT"]
[Termination "LanceMaster23 won - game abandoned"]

1. d4 {[%clk 0:04:58.5]} 1... Nf6 {[%clk 0:04:59.3]} 2. Nf3 {[%clk 0:04:57.5]}
2... d5 {[%clk 0:04:58.5]} 3. c4 {[%clk 0:04:56.4]} 3... c6 {[%clk 0:04:54.4]}
4. Nc3 {[%clk 0:04:55.2]} 4... Qb6 {[%clk 0:04:51.7]} 5. cxd5 {[%clk 0:04:53.7]}
5... cxd5 {[%clk 0:04:50.6]} 6. Bf4 {[%clk 0:04:52.3]} 6... Bf5 {[%clk
0:04:48.7]} 7. Qd2 {[%clk 0:04:50.2]} 7... e6 {[%clk 0:04:47.9]} 8. e3 {[%clk
0:04:48.5]} 8... Nbd7 {[%clk 0:04:46.1]} 9. Be2 {[%clk 0:04:46.7]} 9... Be7
{[%clk 0:04:45.2]} 10. O-O {[%clk 0:04:45.6]} 10... O-O {[%clk 0:04:44.7]} 11.
Rac1 {[%clk 0:04:44]} 11... Bb4 {[%clk 0:04:37.6]} 12. a3 {[%clk 0:04:42.7]}
12... Bxc3 {[%clk 0:04:35.8]} 13. bxc3 {[%clk 0:04:41.3]} 13... Qa5 {[%clk
0:04:31.6]} 14. Bd3 {[%clk 0:04:38]} 14... Bxd3 {[%clk 0:04:24.9]} 15. Qxd3
{[%clk 0:04:36.8]} 15... Qxa3 {[%clk 0:04:24.3]} 16. Ra1 {[%clk 0:04:34.7]}
16... Qe7 {[%clk 0:04:21.5]} 17. Rfb1 {[%clk 0:04:33.8]} 17... b6 {[%clk
0:04:09.1]} 18. c4 {[%clk 0:04:32.8]} 18... dxc4 {[%clk 0:04:06.7]} 19. Qxc4
{[%clk 0:04:31.9]} 19... Nd5 {[%clk 0:04:00.5]} 20. Bg3 {[%clk 0:04:29.2]} 20...
Rfc8 {[%clk 0:03:54.5]} 21. Qa6 {[%clk 0:04:27.1]} 21... h6 {[%clk 0:03:11.6]}
22. h3 {[%clk 0:04:24.9]} 22... N7f6 {[%clk 0:03:04.9]} 23. Rc1 {[%clk
0:04:23.4]} 23... Rxc1+ {[%clk 0:02:31.4]} 24. Rxc1 {[%clk 0:04:21.9]} 24... Ne4
{[%clk 0:02:30.8]} 25. Be5 {[%clk 0:04:14.2]} 25... f6 {[%clk 0:02:24.6]} 26.
Rc8+ {[%clk 0:04:12.3]} 26... Rxc8 {[%clk 0:02:22.6]} 27. Qxc8+ {[%clk
0:04:11.3]} 27... Kf7 {[%clk 0:02:07]} 28. Bf4 {[%clk 0:04:08.7]} 28... Nxf4
{[%clk 0:02:00.8]} 29. exf4 {[%clk 0:04:06.5]} 29... a5 {[%clk 0:01:30.7]} 0-1

[Event "Live Chess"]
[Site "Chess.com"]
[Date "2023.05.21"]
[Round "-"]
[White "ClassyChameleon"]
[Black "Jo1ts"]
[Result "1/2-1/2"]
[WhiteElo "1114"]
[BlackElo "820"]
[TimeControl "300"]
[EndTime "17:48:01 PDT"]
[Termination "Game drawn by repetition"]

1. e4 {[%clk 0:04:58.5]} 1... d5 {[%clk 0:04:57.6]} 2. f3 {[%clk 0:04:54.7]}
2... dxe4 {[%clk 0:04:48]} 3. fxe4 {[%clk 0:04:53.3]} 3... e5 {[%clk 0:04:47.6]}
4. Bc4 {[%clk 0:04:48.9]} 4... Nc6 {[%clk 0:04:42.6]} 5. d3 {[%clk 0:04:47.9]}
5... Nf6 {[%clk 0:04:36.9]} 6. Nc3 {[%clk 0:04:43.4]} 6... Bb4 {[%clk 0:04:24]}
7. Bd2 {[%clk 0:04:41.2]} 7... Nd4 {[%clk 0:04:08.4]} 8. Nd5 {[%clk 0:04:19.7]}
8... Bxd2+ {[%clk 0:03:48.4]} 9. Qxd2 {[%clk 0:04:11.5]} 9... Be6 {[%clk
0:03:45.6]} 10. O-O-O {[%clk 0:04:06]} 10... Nxd5 {[%clk 0:03:41.2]} 11. Bxd5
{[%clk 0:04:01.6]} 11... Bxd5 {[%clk 0:03:39.9]} 12. exd5 {[%clk 0:04:00.9]}
12... Qxd5 {[%clk 0:03:38.7]} 13. Nh3 {[%clk 0:03:48.6]} 13... Qxa2 {[%clk
0:03:34.5]} 14. Qb4 {[%clk 0:03:26]} 14... Nc6 {[%clk 0:03:03.6]} 15. Qe4 {[%clk
0:03:14.4]} 15... O-O {[%clk 0:02:53.7]} 16. Ng5 {[%clk 0:03:05.7]} 16... g6
{[%clk 0:02:39.2]} 17. Qh4 {[%clk 0:02:42.8]} 17... h5 {[%clk 0:02:27.9]} 18.
Ne4 {[%clk 0:02:34]} 18... Qa1+ {[%clk 0:02:21.7]} 19. Kd2 {[%clk 0:02:31.5]}
19... Qxb2 {[%clk 0:02:18.3]} 20. Qg5 {[%clk 0:02:08.3]} 20... Kh7 {[%clk
0:02:03.5]} 21. Nf6+ {[%clk 0:01:57.9]} 21... Kg7 {[%clk 0:01:59.8]} 22. Nxh5+
{[%clk 0:01:56.4]} 22... Kh7 {[%clk 0:01:48]} 23. Nf6+ {[%clk 0:01:49.5]} 23...
Kg7 {[%clk 0:01:43.4]} 24. Rhf1 {[%clk 0:01:40.6]} 24... Qb4+ {[%clk 0:01:31.6]}
25. c3 {[%clk 0:01:30.5]} 25... Qb2+ {[%clk 0:01:26.1]} 26. Ke3 {[%clk
0:01:24.8]} 26... Qb6+ {[%clk 0:01:22.3]} 27. Ke2 {[%clk 0:01:04.2]} 27... Qb2+
{[%clk 0:01:11.6]} 28. Rd2 {[%clk 0:01:01.2]} 28... Qxc3 {[%clk 0:01:08.1]} 29.
Qh4 {[%clk 0:00:57.3]} 29... Rh8 {[%clk 0:00:57.6]} 30. Qg4 {[%clk 0:00:40.7]}
30... Nd4+ {[%clk 0:00:47]} 31. Ke3 {[%clk 0:00:36]} 31... Nc2+ {[%clk
0:00:20.9]} 32. Ke2 {[%clk 0:00:31.2]} 32... Nd4+ {[%clk 0:00:17.5]} 33. Ke3
{[%clk 0:00:29.9]} 33... Nc2+ {[%clk 0:00:16.3]} 34. Ke2 {[%clk 0:00:27.9]}
34... Nd4+ {[%clk 0:00:14.1]} 1/2-1/2

[Event "Live Chess"]
[Site "Chess.com"]
[Date "2023.05.21"]
[Round "-"]
[White "jennybobby44"]
[Black "Tilbs_12"]
[Result "1-0"]
[WhiteElo "1838"]
[BlackElo "1554"]
[TimeControl "300"]
[EndTime "17:48:08 PDT"]
[Termination "jennybobby44 won by resignation"]

1. Nf3 {[%clk 0:04:59.3]} 1... Nf6 {[%clk 0:04:57.4]} 2. g3 {[%clk 0:04:58.3]}
2... c5 {[%clk 0:04:54.7]} 3. Bg2 {[%clk 0:04:56.4]} 3... Nc6 {[%clk 0:04:54.3]}
4. c4 {[%clk 0:04:54.6]} 4... g6 {[%clk 0:04:52.4]} 5. Nc3 {[%clk 0:04:53.1]}
5... Bg7 {[%clk 0:04:51.8]} 6. O-O {[%clk 0:04:52.1]} 6... d6 {[%clk 0:04:51.1]}
7. b3 {[%clk 0:04:50.9]} 7... O-O {[%clk 0:04:50.3]} 8. Bb2 {[%clk 0:04:50.3]}
8... Bd7 {[%clk 0:04:42.7]} 9. e3 {[%clk 0:04:49.6]} 9... e5 {[%clk 0:04:41.5]}
10. a3 {[%clk 0:04:41.8]} 10... Be6 {[%clk 0:04:30.2]} 11. d3 {[%clk 0:04:39.7]}
11... Ne8 {[%clk 0:04:23]} 12. Rb1 {[%clk 0:04:34.2]} 12... f5 {[%clk 0:04:20]}
13. Nd5 {[%clk 0:04:31.6]} 13... Bxd5 {[%clk 0:04:13.2]} 14. cxd5 {[%clk
0:04:30.7]} 14... Ne7 {[%clk 0:04:09.5]} 15. Ng5 {[%clk 0:04:28.5]} 15... Nc7
{[%clk 0:04:04.2]} 16. e4 {[%clk 0:04:22.6]} 16... h6 {[%clk 0:04:02.2]} 17. Nh3
{[%clk 0:04:20.5]} 17... b5 {[%clk 0:03:51.9]} 18. f4 {[%clk 0:04:18.7]} 18...
exf4 {[%clk 0:03:37.9]} 19. Nxf4 {[%clk 0:04:17.1]} 19... Bxb2 {[%clk
0:03:33.4]} 20. Rxb2 {[%clk 0:04:16.1]} 20... Kh7 {[%clk 0:03:24.8]} 21. Rbf2
{[%clk 0:03:57.9]} 21... Rf7 {[%clk 0:03:00.2]} 22. d4 {[%clk 0:03:49.2]} 22...
Qf8 {[%clk 0:02:18.6]} 23. dxc5 {[%clk 0:03:42.6]} 23... Ng8 {[%clk 0:02:04.9]}
24. Re1 {[%clk 0:03:31.4]} 24... g5 {[%clk 0:02:03.3]} 25. Ne6 {[%clk
0:03:24.7]} 25... Nxe6 {[%clk 0:02:01.8]} 26. dxe6 {[%clk 0:03:23.8]} 26... Rf6
{[%clk 0:01:57.3]} 27. exf5 {[%clk 0:03:21.8]} 27... Rc8 {[%clk 0:01:46.5]} 28.
cxd6 {[%clk 0:03:19.7]} 28... Rxf5 {[%clk 0:01:38.9]} 29. Be4 {[%clk 0:03:18.6]}
29... Rc5 {[%clk 0:01:28.4]} 30. Ref1 {[%clk 0:03:14.9]} 30... Kg6 {[%clk
0:01:25.7]} 31. Rxf5 {[%clk 0:03:12.6]} 31... Rxf5 {[%clk 0:01:23.9]} 32. Rxf5
{[%clk 0:03:10.9]} 32... Qxf5 {[%clk 0:01:17.1]} 33. Bxf5+ {[%clk 0:03:10.1]}
33... Kxf5 {[%clk 0:01:17]} 34. d7 {[%clk 0:03:09]} 1-0

[Event "Live Chess"]
[Site "Chess.com"]
[Date "2023.05.21"]
[Round "-"]
[White "ThatGuyNamedJeff"]
[Black "xx_blindpuffin_xx"]
[Result "0-1"]
[WhiteElo "1575"]
[BlackElo "2196"]
[TimeControl "300"]
[EndTime "17:48:17 PDT"]
[Termination "xx_blindpuffin_xx won by resignation"]

1. e4 {[%clk 0:04:57.8]} 1... c6 {[%clk 0:04:58.8]} 2. d4 {[%clk 0:04:56]} 2...
d5 {[%clk 0:04:58.2]} 3. Nc3 {[%clk 0:04:55.7]} 3... dxe4 {[%clk 0:04:56.6]} 4.
Nxe4 {[%clk 0:04:55.6]} 4... Bf5 {[%clk 0:04:55.4]} 5. Ng3 {[%clk 0:04:54.7]}
5... Bg6 {[%clk 0:04:54.6]} 6. N1e2 {[%clk 0:04:54.3]} 6... Nd7 {[%clk
0:04:50.1]} 7. c3 {[%clk 0:04:50.1]} 7... e6 {[%clk 0:04:49.3]} 8. Nf4 {[%clk
0:04:49.7]} 8... Ngf6 {[%clk 0:04:48.4]} 9. h4 {[%clk 0:04:48.4]} 9... h6 {[%clk
0:04:41.7]} 10. Nxg6 {[%clk 0:04:47]} 10... fxg6 {[%clk 0:04:41.6]} 11. Bd3
{[%clk 0:04:43.8]} 11... Kf7 {[%clk 0:04:30.5]} 12. Qc2 {[%clk 0:04:39.4]} 12...
Bd6 {[%clk 0:04:29.2]} 13. Bxg6+ {[%clk 0:04:38.1]} 13... Kg8 {[%clk 0:04:28.3]}
14. Ne4 {[%clk 0:04:00.7]} 14... Nxe4 {[%clk 0:04:26.7]} 15. Qxe4 {[%clk
0:04:00.6]} 15... Qf6 {[%clk 0:04:23.5]} 16. Be3 {[%clk 0:03:37.3]} 16... Nf8
{[%clk 0:04:09.3]} 17. Bh5 {[%clk 0:03:09.7]} 17... g6 {[%clk 0:04:07.6]} 18.
Bf3 {[%clk 0:03:08.1]} 18... Re8 {[%clk 0:04:05.7]} 19. h5 {[%clk 0:02:50.6]}
19... g5 {[%clk 0:04:03.9]} 20. O-O-O {[%clk 0:02:43.6]} 20... e5 {[%clk
0:04:02]} 21. dxe5 {[%clk 0:02:12.5]} 21... Bxe5 {[%clk 0:03:59.6]} 22. Qc4+
{[%clk 0:02:10]} 22... Kg7 {[%clk 0:03:58.6]} 23. Bd4 {[%clk 0:01:53.6]} 23...
Bxd4 {[%clk 0:03:56.1]} 24. Qxd4 {[%clk 0:01:52.2]} 24... Ne6 {[%clk 0:03:53.7]}
25. Qxf6+ {[%clk 0:01:38.5]} 25... Kxf6 {[%clk 0:03:53.6]} 26. Rd7 {[%clk
0:01:37.5]} 26... Nc5 {[%clk 0:03:52.8]} 27. Rc7 {[%clk 0:01:17]} 27... Re7
{[%clk 0:03:39.8]} 28. Rxe7 {[%clk 0:01:13]} 28... Kxe7 {[%clk 0:03:39.7]} 29.
Re1+ {[%clk 0:01:10.1]} 29... Kf6 {[%clk 0:03:36.8]} 30. Kc2 {[%clk 0:01:09.1]}
30... Rd8 {[%clk 0:03:34.3]} 31. b4 {[%clk 0:01:01.8]} 31... Ne6 {[%clk
0:03:28.5]} 32. Bg4 {[%clk 0:00:53.8]} 32... Nf8 {[%clk 0:03:25.7]} 33. a4
{[%clk 0:00:47.9]} 33... a5 {[%clk 0:03:23.6]} 34. bxa5 {[%clk 0:00:40.7]} 34...
Ra8 {[%clk 0:03:21.9]} 35. Rb1 {[%clk 0:00:40.4]} 35... Rxa5 {[%clk 0:03:14.7]}
36. Rxb7 {[%clk 0:00:38.9]} 36... Rxa4 {[%clk 0:03:14.2]} 37. Be2 {[%clk
0:00:28.2]} 37... Ra2+ {[%clk 0:03:10.8]} 38. Kd3 {[%clk 0:00:27.5]} 38... Ke6
{[%clk 0:03:04.5]} 39. Rb6 {[%clk 0:00:26.9]} 39... Kd6 {[%clk 0:03:00.2]} 40.
Kd4 {[%clk 0:00:24.8]} 40... Nd7 {[%clk 0:02:58.8]} 41. Rb7 {[%clk 0:00:13.3]}
41... Rxe2 {[%clk 0:02:57.2]} 0-1

[Event "Live Chess"]
[Site "Chess.com"]
[Date "2023.05.21"]
[Round "-"]
[White "romchyk1219"]
[Black "grillage"]
[Result "0-1"]
[WhiteElo "634"]
[BlackElo "1800"]
[TimeControl "300"]
[EndTime "17:48:43 PDT"]
[Termination "grillage won by checkmate"]

1. e4 {[%clk 0:04:58.3]} 1... d5 {[%clk 0:04:58.1]} 2. d4 {[%clk 0:04:56.7]}
2... dxe4 {[%clk 0:04:56.5]} 3. Nc3 {[%clk 0:04:56.3]} 3... e5 {[%clk
0:04:54.9]} 4. f3 {[%clk 0:04:55.9]} 4... exd4 {[%clk 0:04:50.6]} 5. Nce2 {[%clk
0:04:53.8]} 5... d3 {[%clk 0:04:44.3]} 6. cxd3 {[%clk 0:04:50.9]} 6... exd3
{[%clk 0:04:43.4]} 7. Nf4 {[%clk 0:04:46.3]} 7... Bb4+ {[%clk 0:04:38]} 8. Bd2
{[%clk 0:04:38.8]} 8... Qe7+ {[%clk 0:04:34.5]} 9. Kf2 {[%clk 0:04:33.6]} 9...
Bc5+ {[%clk 0:04:25.8]} 10. Kg3 {[%clk 0:04:24.5]} 10... Qg5# {[%clk 0:04:12.5]}
0-1

[Event "Live Chess"]
[Site "Chess.com"]
[Date "2023.05.21"]
[Round "-"]
[White "SupremeTactician"]
[Black "laminaaprod"]
[Result "0-1"]
[WhiteElo "2317"]
[BlackElo "2248"]
[TimeControl "300"]
[EndTime "17:49:04 PDT"]
[Termination "laminaaprod won by resignation"]

1. e4 {[%clk 0:04:59.2]} 1... e5 {[%clk 0:04:53.5]} 2. Nf3 {[%clk 0:04:57.5]}
2... d5 {[%clk 0:04:52.4]} 3. Nxe5 {[%clk 0:04:56.4]} 3... Bd6 {[%clk
0:04:46.3]} 4. d4 {[%clk 0:04:54.6]} 4... dxe4 {[%clk 0:04:44.9]} 5. Nc3 {[%clk
0:04:53.7]} 5... Bxe5 {[%clk 0:04:44.2]} 6. dxe5 {[%clk 0:04:53.6]} 6... Qxd1+
{[%clk 0:04:43.5]} 7. Nxd1 {[%clk 0:04:53.5]} 7... Nc6 {[%clk 0:04:42.7]} 8. Bf4
{[%clk 0:04:53.2]} 8... Nge7 {[%clk 0:04:39.3]} 9. Nc3 {[%clk 0:04:51.3]} 9...
Ng6 {[%clk 0:04:38]} 10. Bg3 {[%clk 0:04:50.9]} 10... Bd7 {[%clk 0:04:27.3]} 11.
Nxe4 {[%clk 0:04:48.7]} 11... Ncxe5 {[%clk 0:04:26.3]} 12. Bxe5 {[%clk
0:04:47.9]} 12... Nxe5 {[%clk 0:04:24]} 13. O-O-O {[%clk 0:04:47]} 13... O-O-O
{[%clk 0:04:16.2]} 14. Be2 {[%clk 0:04:44]} 14... Bc6 {[%clk 0:04:10.6]} 15. f3
{[%clk 0:04:42.7]} 15... Bxe4 {[%clk 0:04:05.1]} 16. fxe4 {[%clk 0:04:42.6]}
16... f6 {[%clk 0:04:03.5]} 17. c3 {[%clk 0:04:40.8]} 17... c6 {[%clk
0:03:56.4]} 18. Kc2 {[%clk 0:04:40]} 18... Rxd1 {[%clk 0:03:54.9]} 19. Rxd1
{[%clk 0:04:39.9]} 19... Rd8 {[%clk 0:03:54]} 20. Rxd8+ {[%clk 0:04:38.6]} 20...
Kxd8 {[%clk 0:03:53.5]} 21. b3 {[%clk 0:04:37.7]} 21... Ke7 {[%clk 0:03:52.7]}
22. g3 {[%clk 0:04:37]} 22... Kd6 {[%clk 0:03:52]} 23. c4 {[%clk 0:04:36.4]}
23... Nd7 {[%clk 0:03:51.1]} 24. Kc3 {[%clk 0:04:35.6]} 24... Ke5 {[%clk
0:03:50.5]} 25. Kd3 {[%clk 0:04:33.8]} 25... Nc5+ {[%clk 0:03:49.7]} 26. Ke3
{[%clk 0:04:33.3]} 26... Nxe4 {[%clk 0:03:49.6]} 27. Bd3 {[%clk 0:04:32.6]}
27... f5 {[%clk 0:03:45.3]} 28. g4 {[%clk 0:04:27.4]} 28... f4+ {[%clk
0:03:30.2]} 29. Kf3 {[%clk 0:04:26.2]} 29... Ng5+ {[%clk 0:03:29.8]} 30. Kf2
{[%clk 0:04:24.9]} 30... h6 {[%clk 0:03:28.4]} 31. h4 {[%clk 0:04:24.1]} 31...
Ne6 {[%clk 0:03:27.4]} 32. Bf5 {[%clk 0:04:21.5]} 32... Nd4 {[%clk 0:03:23.4]}
33. Bc8 {[%clk 0:04:20.5]} 33... b6 {[%clk 0:03:22.2]} 34. Bd7 {[%clk
0:04:17.5]} 34... c5 {[%clk 0:03:21.3]} 35. g5 {[%clk 0:04:12.4]} 35... hxg5
{[%clk 0:03:19.8]} 36. hxg5 {[%clk 0:04:12.3]} 36... Nc2 {[%clk 0:02:56.2]} 37.
Ba4 {[%clk 0:04:00.5]} 37... Nb4 {[%clk 0:02:42.8]} 38. a3 {[%clk 0:03:59]}
38... Nc2 {[%clk 0:02:41]} 39. Bd7 {[%clk 0:03:54.6]} 39... Nxa3 {[%clk
0:02:39.1]} 0-1